[Event "*** SCC Grand Prix: Titled Tuesday Blitz"]
[Site "Chess.com"]
[Date "2020.06.23"]
[Round "10"]
[White "iverichighladze"]
[Black "imdarealist"]
[Result "1-0"]
[WhiteElo "2450"]
[BlackElo "2323"]
[TimeControl "180+1"]
[EndTime "11:56:44 PDT"]
[Termination "iverichighladze won by checkmate"]

1. d4 {[%clk 0:03:00.9]} 1... Nf6 {[%clk 0:02:59]} 2. c4 {[%clk 0:03:00.8]} 2...
e6 {[%clk 0:02:59.4]} 3. Nc3 {[%clk 0:03:00.9]} 3... d5 {[%clk 0:02:59.6]} 4.
Nf3 {[%clk 0:02:59.5]} 4... Be7 {[%clk 0:02:58.8]} 5. Bf4 {[%clk 0:02:58.9]}
5... O-O {[%clk 0:02:58.5]} 6. e3 {[%clk 0:02:55.7]} 6... b6 {[%clk 0:02:58.9]}
7. Rc1 {[%clk 0:02:54.5]} 7... c5 {[%clk 0:02:54.9]} 8. cxd5 {[%clk 0:02:52.7]}
8... Nxd5 {[%clk 0:02:25.7]} 9. Nxd5 {[%clk 0:02:51.7]} 9... exd5 {[%clk
0:02:22.7]} 10. Bd3 {[%clk 0:02:51]} 10... Be6 {[%clk 0:02:13.6]} 11. O-O {[%clk
0:02:49.4]} 11... Nc6 {[%clk 0:02:06]} 12. Ne5 {[%clk 0:02:46]} 12... Nxe5
{[%clk 0:02:03.9]} 13. Bxe5 {[%clk 0:02:45.8]} 13... Bf6 {[%clk 0:01:23.5]} 14.
f4 {[%clk 0:02:42.3]} 14... cxd4 {[%clk 0:01:07.9]} 15. exd4 {[%clk 0:02:39.3]}
15... Rc8 {[%clk 0:00:51.2]} 16. Rxc8 {[%clk 0:02:33.9]} 16... Bxc8 {[%clk
0:00:50.6]} 17. f5 {[%clk 0:02:34.6]} 17... Re8 {[%clk 0:00:46.8]} 18. Re1
{[%clk 0:02:26.6]} 18... Bxe5 {[%clk 0:00:38.9]} 19. dxe5 {[%clk 0:02:25.1]}
19... Qc7 {[%clk 0:00:38.2]} 20. Qe2 {[%clk 0:02:07]} 20... Qc5+ {[%clk
0:00:35.9]} 21. Kh1 {[%clk 0:02:06.3]} 21... Bb7 {[%clk 0:00:33.4]} 22. h3
{[%clk 0:02:03.3]} 22... d4 {[%clk 0:00:33.6]} 23. e6 {[%clk 0:01:56.8]} 23...
fxe6 {[%clk 0:00:29.2]} 24. fxe6 {[%clk 0:01:55.6]} 24... Qg5 {[%clk 0:00:28.9]}
25. e7 {[%clk 0:01:47.3]} 25... Kh8 {[%clk 0:00:18.2]} 26. Qg4 {[%clk
0:01:28.7]} 26... Qxg4 {[%clk 0:00:15.7]} 27. hxg4 {[%clk 0:01:27.6]} 27... Bc6
{[%clk 0:00:16.2]} 28. Bc4 {[%clk 0:01:25]} 28... d3 {[%clk 0:00:11.6]} 29. Bxd3
{[%clk 0:01:22.4]} 29... g6 {[%clk 0:00:11]} 30. Bc4 {[%clk 0:01:15.1]} 30...
Kg7 {[%clk 0:00:11.4]} 31. g5 {[%clk 0:01:15.4]} 31... b5 {[%clk 0:00:08.9]} 32.
Bb3 {[%clk 0:01:13.9]} 32... a6 {[%clk 0:00:07.5]} 33. a3 {[%clk 0:01:05.2]}
33... a5 {[%clk 0:00:07.5]} 34. Kh2 {[%clk 0:01:04.8]} 34... b4 {[%clk
0:00:07.1]} 35. axb4 {[%clk 0:01:03.7]} 35... axb4 {[%clk 0:00:07.6]} 36. g4
{[%clk 0:01:01.4]} 36... Rb8 {[%clk 0:00:07.8]} 37. Kg3 {[%clk 0:01:01.2]} 37...
Be8 {[%clk 0:00:08]} 38. Bd5 {[%clk 0:00:57.1]} 38... Rc8 {[%clk 0:00:07.6]} 39.
b3 {[%clk 0:00:54.9]} 39... Rb8 {[%clk 0:00:08.1]} 40. Bc4 {[%clk 0:00:54.1]}
40... Rc8 {[%clk 0:00:08.4]} 41. Rf1 {[%clk 0:00:54]} 41... Rc7 {[%clk
0:00:08.3]} 42. Rf8 {[%clk 0:00:52.6]} 42... Rxe7 {[%clk 0:00:08.3]} 43. Rg8#
{[%clk 0:00:52.8]} 1-0

[Event "*** SCC Grand Prix: Titled Tuesday Blitz"]
[Site "Chess.com"]
[Date "2020.06.23"]
[Round "10"]
[White "GelmanAlexander"]
[Black "GuerrieroFromLevant"]
[Result "1-0"]
[WhiteElo "2556"]
[BlackElo "2432"]
[TimeControl "180+1"]
[EndTime "11:56:45 PDT"]
[Termination "GelmanAlexander won by resignation"]

1. c4 {[%clk 0:03:00.9]} 1... e6 {[%clk 0:02:59.4]} 2. Nf3 {[%clk 0:02:59.8]}
2... d5 {[%clk 0:02:59.8]} 3. d3 {[%clk 0:03:00]} 3... Nf6 {[%clk 0:02:59.3]} 4.
Nbd2 {[%clk 0:03:00.2]} 4... Nc6 {[%clk 0:02:57.9]} 5. a3 {[%clk 0:02:59.4]}
5... Bc5 {[%clk 0:02:54]} 6. b4 {[%clk 0:02:58.4]} 6... Bxf2+ {[%clk 0:02:50.1]}
7. Kxf2 {[%clk 0:02:58.5]} 7... Ng4+ {[%clk 0:02:51]} 8. Kg1 {[%clk 0:02:40.7]}
8... Qf6 {[%clk 0:02:46.3]} 9. Rb1 {[%clk 0:02:33.2]} 9... Ne3 {[%clk
0:02:19.7]} 10. Qe1 {[%clk 0:02:05.9]} 10... O-O {[%clk 0:02:14.6]} 11. Qf2
{[%clk 0:01:41.5]} 11... Nd1 {[%clk 0:02:13.6]} 12. Qh4 {[%clk 0:01:39.5]} 12...
Qxh4 {[%clk 0:02:02.7]} 13. Nxh4 {[%clk 0:01:39]} 13... Nd4 {[%clk 0:02:00.7]}
14. Nb3 {[%clk 0:01:13.7]} 14... Nc2 {[%clk 0:01:54.5]} 15. g3 {[%clk
0:00:59.7]} 15... Rd8 {[%clk 0:01:48.1]} 16. cxd5 {[%clk 0:00:58.1]} 16... exd5
{[%clk 0:01:47]} 17. Ng2 {[%clk 0:00:54.8]} 17... d4 {[%clk 0:01:44.1]} 18. Bd2
{[%clk 0:00:50.5]} 18... Nde3 {[%clk 0:01:40.3]} 19. Nxe3 {[%clk 0:00:46.6]}
19... dxe3 {[%clk 0:01:37.5]} 20. Bc1 {[%clk 0:00:47]} 20... Be6 {[%clk
0:01:36.3]} 21. Bg2 {[%clk 0:00:43.1]} 21... Bd5 {[%clk 0:01:29.5]} 22. Bxd5
{[%clk 0:00:42]} 22... Rxd5 {[%clk 0:01:30.4]} 23. Kg2 {[%clk 0:00:40.4]} 23...
b6 {[%clk 0:01:22]} 24. Rb2 {[%clk 0:00:40.6]} 24... Nxa3 {[%clk 0:01:20.1]} 25.
Bxe3 {[%clk 0:00:40.1]} 25... Re8 {[%clk 0:01:20.3]} 26. Bf2 {[%clk 0:00:37.8]}
26... Nb5 {[%clk 0:01:19.6]} 27. Rc1 {[%clk 0:00:36.9]} 27... f5 {[%clk
0:01:16.6]} 28. Kf1 {[%clk 0:00:34.7]} 28... Kf7 {[%clk 0:01:14.2]} 29. Nd2
{[%clk 0:00:32.3]} 29... Rde5 {[%clk 0:01:08.8]} 30. Nf3 {[%clk 0:00:31.4]}
30... R5e7 {[%clk 0:01:08.1]} 31. Rbc2 {[%clk 0:00:30.1]} 31... Rd8 {[%clk
0:01:02.9]} 32. h4 {[%clk 0:00:29]} 32... h6 {[%clk 0:01:02.2]} 33. Rc4 {[%clk
0:00:28.8]} 33... Rd5 {[%clk 0:01:01]} 34. Nd4 {[%clk 0:00:28.6]} 34... Nxd4
{[%clk 0:00:55.4]} 35. Rxd4 {[%clk 0:00:29.5]} 35... Rde5 {[%clk 0:00:53.6]} 36.
Rc2 {[%clk 0:00:29.1]} 36... a5 {[%clk 0:00:50.4]} 37. bxa5 {[%clk 0:00:28]}
37... Rxa5 {[%clk 0:00:51.1]} 38. Rdc4 {[%clk 0:00:28.6]} 38... Ra1+ {[%clk
0:00:50]} 39. Kg2 {[%clk 0:00:28.6]} 39... c5 {[%clk 0:00:49.7]} 40. d4 {[%clk
0:00:29.1]} 40... cxd4 {[%clk 0:00:46.9]} 41. Bxd4 {[%clk 0:00:30]} 41... b5
{[%clk 0:00:47.5]} 42. Rc7 {[%clk 0:00:29.5]} 42... Re1 {[%clk 0:00:41.7]} 43.
Rxe7+ {[%clk 0:00:28.4]} 43... Kxe7 {[%clk 0:00:42.6]} 44. Bxg7 {[%clk
0:00:28.7]} 44... b4 {[%clk 0:00:42.3]} 45. Kf2 {[%clk 0:00:29.2]} 45... Rh1
{[%clk 0:00:40.9]} 46. Bxh6 {[%clk 0:00:28.9]} 1-0

[Event "*** SCC Grand Prix: Titled Tuesday Blitz"]
[Site "Chess.com"]
[Date "2020.06.23"]
[Round "10"]
[White "shineatchess"]
[Black "Kumi29"]
[Result "1-0"]
[WhiteElo "2158"]
[BlackElo "2366"]
[TimeControl "180+1"]
[EndTime "11:56:45 PDT"]
[Termination "shineatchess won by checkmate"]

1. d4 {[%clk 0:03:00.9]} 1... e6 {[%clk 0:02:57]} 2. c4 {[%clk 0:02:58]} 2... b6
{[%clk 0:02:57.3]} 3. Nc3 {[%clk 0:02:51.8]} 3... Bb7 {[%clk 0:02:56.5]} 4. d5
{[%clk 0:02:50.5]} 4... exd5 {[%clk 0:02:50.7]} 5. cxd5 {[%clk 0:02:49.5]} 5...
Nf6 {[%clk 0:02:49.9]} 6. e4 {[%clk 0:02:27.7]} 6... Bb4 {[%clk 0:02:49]} 7. Bd3
{[%clk 0:02:27.8]} 7... Na6 {[%clk 0:02:42.2]} 8. Ne2 {[%clk 0:02:13.7]} 8...
Nc5 {[%clk 0:02:41.3]} 9. O-O {[%clk 0:02:12.2]} 9... Bxc3 {[%clk 0:02:34.4]}
10. Nxc3 {[%clk 0:02:11.1]} 10... d6 {[%clk 0:02:33.4]} 11. Bb5+ {[%clk
0:02:02.9]} 11... Nfd7 {[%clk 0:02:26.2]} 12. b4 {[%clk 0:01:59.8]} 12... Na6
{[%clk 0:02:20.8]} 13. Qa4 {[%clk 0:01:53.7]} 13... Nb8 {[%clk 0:02:20.1]} 14.
Bb2 {[%clk 0:01:43.2]} 14... O-O {[%clk 0:02:19]} 15. f4 {[%clk 0:01:36.3]}
15... a6 {[%clk 0:02:16.2]} 16. Bd3 {[%clk 0:01:34.5]} 16... b5 {[%clk
0:02:14.8]} 17. Qd1 {[%clk 0:01:31.6]} 17... c5 {[%clk 0:02:15.1]} 18. bxc5
{[%clk 0:01:26.3]} 18... Nxc5 {[%clk 0:02:15]} 19. Bc2 {[%clk 0:01:26.2]} 19...
Nbd7 {[%clk 0:02:11.7]} 20. Qd4 {[%clk 0:01:23.7]} 20... Qb6 {[%clk 0:02:07.7]}
21. Nxb5 {[%clk 0:01:08.8]} 21... f6 {[%clk 0:02:07.2]} 22. Na3 {[%clk
0:01:06.3]} 22... Rae8 {[%clk 0:01:57.3]} 23. Nc4 {[%clk 0:01:03.8]} 23... Qc7
{[%clk 0:01:51.7]} 24. Rac1 {[%clk 0:01:01.5]} 24... Nb6 {[%clk 0:01:45.2]} 25.
Bb1 {[%clk 0:00:56.8]} 25... Nxc4 {[%clk 0:01:44.4]} 26. Rxc4 {[%clk 0:00:52.3]}
26... Qf7 {[%clk 0:01:40.5]} 27. Rf3 {[%clk 0:00:46.2]} 27... Qh5 {[%clk
0:01:38.7]} 28. e5 {[%clk 0:00:43]} 28... fxe5 {[%clk 0:01:37.4]} 29. fxe5
{[%clk 0:00:40.4]} 29... Rxf3 {[%clk 0:01:37.5]} 30. gxf3 {[%clk 0:00:39.1]}
30... Qxf3 {[%clk 0:01:35.6]} 31. e6 {[%clk 0:00:39.3]} 31... Re7 {[%clk
0:01:28.6]} 32. Bxh7+ {[%clk 0:00:19.5]} 32... Kxh7 {[%clk 0:01:07.4]} 33. Qh4+
{[%clk 0:00:19.1]} 33... Kg8 {[%clk 0:01:07.9]} 34. Qxe7 {[%clk 0:00:14.3]}
34... Qd1+ {[%clk 0:01:03.7]} 35. Kf2 {[%clk 0:00:14.2]} 35... Qd2+ {[%clk
0:00:56.6]} 36. Kg3 {[%clk 0:00:12]} 36... Qxb2 {[%clk 0:00:52.8]} 37. Qf7+
{[%clk 0:00:10.3]} 37... Kh7 {[%clk 0:00:52.2]} 38. Rh4# {[%clk 0:00:10.2]} 1-0

[Event "*** SCC Grand Prix: Titled Tuesday Blitz"]
[Site "Chess.com"]
[Date "2020.06.23"]
[Round "10"]
[White "vovachesss"]
[Black "Bayernbk"]
[Result "0-1"]
[WhiteElo "2573"]
[BlackElo "2486"]
[TimeControl "180+1"]
[EndTime "11:56:56 PDT"]
[Termination "Bayernbk won by resignation"]

1. e4 {[%clk 0:03:00.9]} 1... e6 {[%clk 0:02:58.1]} 2. Qe2 {[%clk 0:03:00.5]}
2... b6 {[%clk 0:02:54.4]} 3. d4 {[%clk 0:03:00.1]} 3... Bb7 {[%clk 0:02:54.8]}
4. Nc3 {[%clk 0:02:59.7]} 4... Nf6 {[%clk 0:02:53.6]} 5. e5 {[%clk 0:02:58]}
5... Nd5 {[%clk 0:02:53.4]} 6. Nxd5 {[%clk 0:02:57.2]} 6... Bxd5 {[%clk
0:02:53.7]} 7. c4 {[%clk 0:02:57.7]} 7... Bb7 {[%clk 0:02:53.9]} 8. Nf3 {[%clk
0:02:58]} 8... d5 {[%clk 0:02:53.1]} 9. c5 {[%clk 0:02:10.4]} 9... Be7 {[%clk
0:02:37.6]} 10. Be3 {[%clk 0:01:57]} 10... O-O {[%clk 0:02:34.9]} 11. Qc2 {[%clk
0:01:57]} 11... Ba6 {[%clk 0:02:27.5]} 12. Bxa6 {[%clk 0:01:36.2]} 12... Nxa6
{[%clk 0:02:28.4]} 13. a3 {[%clk 0:01:37.1]} 13... bxc5 {[%clk 0:01:54.3]} 14.
dxc5 {[%clk 0:01:36.3]} 14... c6 {[%clk 0:01:45.5]} 15. O-O {[%clk 0:01:22.8]}
15... Nc7 {[%clk 0:01:32.1]} 16. Nd4 {[%clk 0:01:21.9]} 16... Qd7 {[%clk
0:01:30.8]} 17. f4 {[%clk 0:01:17.8]} 17... f5 {[%clk 0:01:28.9]} 18. b4 {[%clk
0:01:04.5]} 18... a5 {[%clk 0:01:22.1]} 19. Rab1 {[%clk 0:01:01.3]} 19... axb4
{[%clk 0:01:21.7]} 20. axb4 {[%clk 0:00:58.6]} 20... Rfb8 {[%clk 0:01:21.7]} 21.
b5 {[%clk 0:00:43.6]} 21... Nxb5 {[%clk 0:01:13.4]} 22. Nxb5 {[%clk 0:00:43.6]}
22... Rxb5 {[%clk 0:01:05]} 23. Rxb5 {[%clk 0:00:42]} 23... cxb5 {[%clk
0:01:05.9]} 24. c6 {[%clk 0:00:42.4]} 24... Qc7 {[%clk 0:00:57.3]} 25. Rc1
{[%clk 0:00:42.2]} 25... b4 {[%clk 0:00:54.7]} 26. Qd3 {[%clk 0:00:38.2]} 26...
Ra3 {[%clk 0:00:42.5]} 27. Qd4 {[%clk 0:00:28.9]} 27... Ra6 {[%clk 0:00:37.3]}
28. Bd2 {[%clk 0:00:19.5]} 28... Rxc6 {[%clk 0:00:33.8]} 29. Rxc6 {[%clk
0:00:17.4]} 29... Qxc6 {[%clk 0:00:34.7]} 30. Bxb4 {[%clk 0:00:12.2]} 30... Qc1+
{[%clk 0:00:28.4]} 31. Kf2 {[%clk 0:00:11.2]} 31... Qc2+ {[%clk 0:00:26.5]} 32.
Kf3 {[%clk 0:00:07.1]} 32... Qe4+ {[%clk 0:00:25.6]} 33. Qxe4 {[%clk 0:00:05.1]}
33... dxe4+ {[%clk 0:00:24.1]} 0-1

[Event "*** SCC Grand Prix: Titled Tuesday Blitz"]
[Site "Chess.com"]
[Date "2020.06.23"]
[Round "10"]
[White "LiverpooL174"]
[Black "Vaathi_Coming"]
[Result "0-1"]
[WhiteElo "2704"]
[BlackElo "2868"]
[TimeControl "180+1"]
[EndTime "11:56:57 PDT"]
[Termination "Vaathi_Coming won by resignation"]

1. e4 {[%clk 0:03:00.5]} 1... c5 {[%clk 0:02:59.9]} 2. Nf3 {[%clk 0:03:01]} 2...
Nc6 {[%clk 0:02:58.5]} 3. d4 {[%clk 0:02:59.8]} 3... cxd4 {[%clk 0:02:59.4]} 4.
Nxd4 {[%clk 0:03:00.7]} 4... Nf6 {[%clk 0:02:59.6]} 5. Nc3 {[%clk 0:03:01]} 5...
h5 {[%clk 0:02:59.8]} 6. Bg5 {[%clk 0:02:57]} 6... Qa5 {[%clk 0:02:53.7]} 7.
Nxc6 {[%clk 0:02:37.8]} 7... Qxg5 {[%clk 0:02:37.1]} 8. Nd4 {[%clk 0:02:37.5]}
8... Qa5 {[%clk 0:02:08.8]} 9. Bd3 {[%clk 0:02:36.3]} 9... g6 {[%clk 0:01:59.1]}
10. Nb3 {[%clk 0:02:36.2]} 10... Qc7 {[%clk 0:01:57.9]} 11. Qf3 {[%clk
0:02:36.1]} 11... Bg7 {[%clk 0:01:53.1]} 12. h3 {[%clk 0:02:36.2]} 12... d6
{[%clk 0:01:41.8]} 13. O-O-O {[%clk 0:02:35.8]} 13... O-O {[%clk 0:01:36.6]} 14.
Kb1 {[%clk 0:02:36.2]} 14... a6 {[%clk 0:01:36]} 15. Rdg1 {[%clk 0:02:35.6]}
15... b5 {[%clk 0:01:13.4]} 16. e5 {[%clk 0:02:35.5]} 16... Bb7 {[%clk
0:00:56.9]} 17. exf6 {[%clk 0:02:35.9]} 17... Bxf3 {[%clk 0:00:57]} 18. fxg7
{[%clk 0:02:36.6]} 18... Kxg7 {[%clk 0:00:51.6]} 19. gxf3 {[%clk 0:02:37]} 19...
e6 {[%clk 0:00:51.3]} 20. Nd4 {[%clk 0:02:26.6]} 20... Qb6 {[%clk 0:00:49.4]}
21. Nce2 {[%clk 0:02:16.4]} 21... Kf6 {[%clk 0:00:37.8]} 22. f4 {[%clk
0:02:11.6]} 22... Rfc8 {[%clk 0:00:29]} 23. c3 {[%clk 0:01:50.2]} 23... b4
{[%clk 0:00:26.6]} 24. c4 {[%clk 0:01:50.7]} 24... a5 {[%clk 0:00:25.2]} 25. Nf3
{[%clk 0:01:35.9]} 25... Qxf2 {[%clk 0:00:19.1]} 26. Ng5 {[%clk 0:01:36.4]}
26... Qe3 {[%clk 0:00:18.7]} 27. Rg3 {[%clk 0:01:35.6]} 27... Qb6 {[%clk
0:00:14.6]} 28. Ne4+ {[%clk 0:01:30.8]} 28... Ke7 {[%clk 0:00:14.9]} 29. Re1
{[%clk 0:01:29.2]} 29... a4 {[%clk 0:00:14.9]} 30. Rf3 {[%clk 0:01:18.6]} 30...
Ra5 {[%clk 0:00:15.2]} 31. Nd2 {[%clk 0:01:17.5]} 31... Rac5 {[%clk 0:00:08.7]}
32. f5 {[%clk 0:01:08.6]} 32... gxf5 {[%clk 0:00:07.8]} 33. Bxf5 {[%clk
0:01:09.1]} 33... Rxf5 {[%clk 0:00:07]} 34. Rxf5 {[%clk 0:01:07.6]} 34... exf5
{[%clk 0:00:07.9]} 35. Nd4+ {[%clk 0:01:00.2]} 35... Kd7 {[%clk 0:00:05.9]} 36.
Nxf5 {[%clk 0:00:59.9]} 36... Re8 {[%clk 0:00:06.2]} 37. Rd1 {[%clk 0:00:59.8]}
37... Qf2 {[%clk 0:00:04.5]} 38. Nxd6 {[%clk 0:00:59.8]} 38... Qe2 {[%clk
0:00:04.7]} 39. Kc1 {[%clk 0:00:53.3]} 39... Kxd6 {[%clk 0:00:05]} 40. Ne4+
{[%clk 0:00:53.5]} 40... Kc6 {[%clk 0:00:05]} 41. Nd2 {[%clk 0:00:53.1]} 41...
b3 {[%clk 0:00:03.7]} 42. axb3 {[%clk 0:00:54]} 42... axb3 {[%clk 0:00:04.4]}
43. Nxb3 {[%clk 0:00:54.6]} 43... Qxc4+ {[%clk 0:00:04.7]} 44. Kb1 {[%clk
0:00:55.5]} 44... Qxb3 {[%clk 0:00:05.2]} 45. Rc1+ {[%clk 0:00:56.4]} 45... Kb7
{[%clk 0:00:05.7]} 46. Rc3 {[%clk 0:00:56.3]} 46... Re1+ {[%clk 0:00:05]} 47.
Rc1 {[%clk 0:00:57.2]} 47... Qd3+ {[%clk 0:00:05.6]} 0-1

[Event "*** SCC Grand Prix: Titled Tuesday Blitz"]
[Site "Chess.com"]
[Date "2020.06.23"]
[Round "10"]
[White "warmoatmeal"]
[Black "nitpicker"]
[Result "1-0"]
[WhiteElo "2321"]
[BlackElo "2160"]
[TimeControl "180+1"]
[EndTime "11:56:58 PDT"]
[Termination "warmoatmeal won on time"]

1. Nf3 {[%clk 0:03:00.9]} 1... f5 {[%clk 0:02:54.5]} 2. d3 {[%clk 0:03:00.5]}
2... Nf6 {[%clk 0:02:44.2]} 3. e4 {[%clk 0:02:59.9]} 3... d6 {[%clk 0:02:40.8]}
4. Nc3 {[%clk 0:02:49.5]} 4... e5 {[%clk 0:02:37.8]} 5. exf5 {[%clk 0:02:49]}
5... Bxf5 {[%clk 0:02:36.8]} 6. d4 {[%clk 0:02:49.5]} 6... e4 {[%clk 0:02:35.1]}
7. Nh4 {[%clk 0:02:49.9]} 7... Bc8 {[%clk 0:02:27.9]} 8. Be2 {[%clk 0:02:38.5]}
8... d5 {[%clk 0:02:24.9]} 9. Be3 {[%clk 0:02:35.5]} 9... Bd6 {[%clk 0:02:13.8]}
10. g3 {[%clk 0:02:34.3]} 10... c6 {[%clk 0:02:12.7]} 11. O-O {[%clk 0:02:33.6]}
11... Bh3 {[%clk 0:02:01.7]} 12. Re1 {[%clk 0:02:33.2]} 12... O-O {[%clk
0:01:56.6]} 13. Bf1 {[%clk 0:02:33.2]} 13... Bg4 {[%clk 0:01:55.3]} 14. Be2
{[%clk 0:02:33.6]} 14... Bh3 {[%clk 0:01:39]} 15. Bf1 {[%clk 0:02:33]} 15... Bg4
{[%clk 0:01:38]} 16. Qd2 {[%clk 0:02:32.1]} 16... Nbd7 {[%clk 0:01:33.8]} 17.
Be2 {[%clk 0:02:31.7]} 17... Nb6 {[%clk 0:01:29.1]} 18. Bg5 {[%clk 0:02:26.4]}
18... Qd7 {[%clk 0:01:26.8]} 19. Ng2 {[%clk 0:02:22]} 19... Rae8 {[%clk
0:01:22.5]} 20. Rad1 {[%clk 0:02:19.7]} 20... h6 {[%clk 0:01:11.3]} 21. Bf4
{[%clk 0:02:18.1]} 21... Bf3 {[%clk 0:01:05.9]} 22. Bxd6 {[%clk 0:02:16.4]}
22... Qxd6 {[%clk 0:01:04.7]} 23. Bxf3 {[%clk 0:02:16.7]} 23... exf3 {[%clk
0:01:04.1]} 24. Nh4 {[%clk 0:02:17.6]} 24... Nc4 {[%clk 0:00:50.6]} 25. Qc1
{[%clk 0:02:12.4]} 25... Rxe1+ {[%clk 0:00:42]} 26. Rxe1 {[%clk 0:02:12.4]}
26... Ng4 {[%clk 0:00:35.8]} 27. b3 {[%clk 0:02:05.4]} 27... Qb4 {[%clk
0:00:30.1]} 28. bxc4 {[%clk 0:01:52.4]} 28... Qxc3 {[%clk 0:00:30]} 29. cxd5
{[%clk 0:01:51.9]} 29... Qxd4 {[%clk 0:00:28.8]} 30. Rf1 {[%clk 0:01:41.7]}
30... g5 {[%clk 0:00:27.9]} 31. Ng6 {[%clk 0:01:35.9]} 31... Re8 {[%clk
0:00:27.4]} 32. h3 {[%clk 0:01:33.5]} 32... Nf6 {[%clk 0:00:11.1]} 33. dxc6
{[%clk 0:01:29.3]} 33... bxc6 {[%clk 0:00:10]} 34. c3 {[%clk 0:01:27.5]} 34...
Qd3 {[%clk 0:00:06.4]} 35. Qb1 {[%clk 0:01:27.2]} 35... Qxb1 {[%clk 0:00:05.2]}
36. Rxb1 {[%clk 0:01:28.1]} 36... Kg7 {[%clk 0:00:05.5]} 37. Rb7+ {[%clk
0:01:18.1]} 37... Kxg6 {[%clk 0:00:05.7]} 38. Rxa7 {[%clk 0:01:19]} 38... Re1+
{[%clk 0:00:05.5]} 39. Kh2 {[%clk 0:01:19.9]} 39... Ne4 {[%clk 0:00:06]} 40. g4
{[%clk 0:01:19.6]} 40... Nxf2 {[%clk 0:00:04.6]} 41. Kg3 {[%clk 0:01:20.5]}
41... Ne4+ {[%clk 0:00:04.6]} 42. Kxf3 {[%clk 0:01:21.4]} 42... Nxc3 {[%clk
0:00:05.3]} 43. Rc7 {[%clk 0:01:18.2]} 43... Re6 {[%clk 0:00:03.3]} 44. a3
{[%clk 0:01:18.2]} 44... Nd5 {[%clk 0:00:03.5]} 45. Rc8 {[%clk 0:01:18.8]} 45...
Kf6 {[%clk 0:00:03.3]} 46. a4 {[%clk 0:01:19.3]} 46... Ke5 {[%clk 0:00:03.5]}
47. a5 {[%clk 0:01:19.8]} 47... Nb4 {[%clk 0:00:02.5]} 48. Rh8 {[%clk
0:01:19.3]} 48... Kd5 {[%clk 0:00:01.2]} 49. a6 {[%clk 0:01:17.8]} 1-0

[Event "*** SCC Grand Prix: Titled Tuesday Blitz"]
[Site "Chess.com"]
[Date "2020.06.23"]
[Round "10"]
[White "Quiet_Desperation"]
[Black "argentum049"]
[Result "0-1"]
[WhiteElo "1981"]
[BlackElo "2426"]
[TimeControl "180+1"]
[EndTime "11:56:59 PDT"]
[Termination "argentum049 won by resignation"]

1. e4 {[%clk 0:03:00.9]} 1... e5 {[%clk 0:02:59.5]} 2. Nf3 {[%clk 0:03:00.5]}
2... Nc6 {[%clk 0:03:00]} 3. Bc4 {[%clk 0:03:00.4]} 3... Nf6 {[%clk 0:02:59.6]}
4. d3 {[%clk 0:03:00.1]} 4... Bc5 {[%clk 0:02:58.8]} 5. O-O {[%clk 0:02:59.6]}
5... O-O {[%clk 0:02:58.7]} 6. c3 {[%clk 0:02:59.3]} 6... a6 {[%clk 0:02:54.6]}
7. Bg5 {[%clk 0:02:52.5]} 7... h6 {[%clk 0:02:53.3]} 8. Bh4 {[%clk 0:02:52.4]}
8... d6 {[%clk 0:02:48.3]} 9. Qd2 {[%clk 0:02:32]} 9... Bg4 {[%clk 0:02:42.1]}
10. Ne1 {[%clk 0:02:28.7]} 10... Be6 {[%clk 0:02:39.5]} 11. Nf3 {[%clk
0:02:22.7]} 11... g5 {[%clk 0:02:35.8]} 12. Nxg5 {[%clk 0:02:22.1]} 12... Bxc4
{[%clk 0:02:29.9]} 13. Nf3 {[%clk 0:02:13.4]} 13... Be6 {[%clk 0:02:07.6]} 14.
Qxh6 {[%clk 0:02:11]} 14... Ng4 {[%clk 0:02:07.8]} 15. Qh5 {[%clk 0:02:02.1]}
15... f6 {[%clk 0:02:02.3]} 16. h3 {[%clk 0:01:48.2]} 16... Qd7 {[%clk
0:01:38.7]} 17. hxg4 {[%clk 0:01:39.3]} 17... Bxg4 {[%clk 0:01:38.5]} 18. Qg6+
{[%clk 0:01:39.4]} 18... Qg7 {[%clk 0:01:39]} 19. Qxg7+ {[%clk 0:01:38.8]} 19...
Kxg7 {[%clk 0:01:39.1]} 20. Nbd2 {[%clk 0:01:33.5]} 20... Rh8 {[%clk 0:01:38]}
21. Bg3 {[%clk 0:01:33.5]} 21... Ne7 {[%clk 0:01:38]} 22. Nh2 {[%clk 0:01:33.2]}
22... Be2 {[%clk 0:01:34.5]} 23. Rfe1 {[%clk 0:01:28.5]} 23... Bxd3 {[%clk
0:01:35.4]} 24. Rad1 {[%clk 0:01:28.2]} 24... Bb6 {[%clk 0:01:33.4]} 25. Ndf3
{[%clk 0:01:26.9]} 25... Bc4 {[%clk 0:01:32.3]} 26. b3 {[%clk 0:01:26.3]} 26...
Be6 {[%clk 0:01:32.3]} 27. Nh4 {[%clk 0:01:06.7]} 27... Rh5 {[%clk 0:01:27.6]}
28. Rd3 {[%clk 0:01:01]} 28... Rah8 {[%clk 0:01:27.2]} 29. N4f3 {[%clk
0:01:01.1]} 29... Ng6 {[%clk 0:01:25.4]} 30. Kf1 {[%clk 0:01:00.4]} 30... Nf4
{[%clk 0:01:23.3]} 31. Bxf4 {[%clk 0:01:00.3]} 31... exf4 {[%clk 0:01:23]} 32.
Kg1 {[%clk 0:00:54]} 32... Bg4 {[%clk 0:01:19.4]} 33. e5 {[%clk 0:00:46.6]}
33... fxe5 {[%clk 0:01:13.2]} 34. Kf1 {[%clk 0:00:37.9]} 34... Rxh2 {[%clk
0:01:10.5]} 35. Nxh2 {[%clk 0:00:38.1]} 35... Rxh2 {[%clk 0:01:10.5]} 36. f3
{[%clk 0:00:38.4]} 36... Bh3 {[%clk 0:01:07.2]} 37. Rd2 {[%clk 0:00:37.2]} 37...
Rh1+ {[%clk 0:01:06]} 38. Ke2 {[%clk 0:00:37.1]} 38... Bxg2 {[%clk 0:01:06.5]}
39. Rxh1 {[%clk 0:00:34.5]} 39... Bxh1 {[%clk 0:01:06.1]} 40. c4 {[%clk
0:00:19.6]} 40... Kf6 {[%clk 0:01:04.2]} 41. b4 {[%clk 0:00:18.3]} 41... Be3
{[%clk 0:01:00.7]} 42. Rd1 {[%clk 0:00:15.5]} 42... Bg2 {[%clk 0:01:00.8]} 43.
c5 {[%clk 0:00:13.6]} 43... dxc5 {[%clk 0:00:59.6]} 44. bxc5 {[%clk 0:00:14.5]}
44... Bxc5 {[%clk 0:00:59.8]} 45. Rd7 {[%clk 0:00:14.8]} 45... Bd6 {[%clk
0:00:59]} 46. Rh7 {[%clk 0:00:14.5]} 46... e4 {[%clk 0:00:58.1]} 47. fxe4 {[%clk
0:00:14.6]} 47... f3+ {[%clk 0:00:58.2]} 48. Kf2 {[%clk 0:00:13.1]} 48... Ke5
{[%clk 0:00:55.7]} 49. Rh4 {[%clk 0:00:11]} 49... Kd4 {[%clk 0:00:55.5]} 50. e5+
{[%clk 0:00:10.1]} 0-1